bitfinex/quotes_ETHUSD_20241019
["timestamp","ask_amount","ask_price","bid_price","bid_amount"]
[1729331845231,1.97531932,2647.1,2646.8,5.38376]
[1729331845548,1.97531932,2647.2,2646.9,3.77797]
[1729331846079,1.97531932,2647.2,2647.0,1.6057]
[1729331846577,3.92726,2647.4,2647.0,1.6057]
[1729331846880,1.97587265,2647.2,2647.0,1.6057]
[1729331847381,1.97587265,2647.2,2647.0,5.38353]
[1729331847674,1.97587265,2647.2,2647.0,1.6057]
[1729331848244,1.97587265,2647.3,2647.0,1.6057]
[1729331848846,1.97587265,2647.3,2647.0,5.38355]
[1729331849898,3.92726,2647.4,2647.0,5.38355]
[1729331849899,1.97587265,2647.2,2647.0,5.38355]
[1729331850056,1.97587265,2647.3,2647.0,5.38355]
[1729331852906,1.97587265,2647.3,2647.0,2.521868]
[1729331853062,1.97587265,2647.3,2647.0,6.299658]
[1729331854504,5.90307265,2647.4,2647.0,6.299658]
[1729331854705,5.90307265,2647.4,2647.0,5.38349]
[1729331856379,5.90265452,2647.4,2647.0,5.38349]
[1729331857202,5.90265452,2647.4,2647.0,1.6057]
[1729331857404,5.75289452,2647.3,2647.0,1.6057]
[1729331861208,3.77744,2647.3,2647.0,1.6057]
[1729331861507,5.75349387,2647.3,2647.0,1.6057]
[1729331862275,1.97605387,2647.2,2647.0,1.6057]
[1729331866009,1.97714536,2647.2,2647.0,1.6057]
[1729331869303,1.97714536,2647.1,2647.0,1.6057]
[1729331869634,1.97714536,2647.2,2647.0,1.6057]
[1729331870926,1.97770955,2647.2,2647.0,1.6057]
[1729331871234,1.97770955,2647.1,2647.0,1.6057]
[1729331872095,1.97770955,2647.2,2647.0,1.6057]
[1729331872533,1.97770955,2647.1,2647.0,1.6057]
[1729331873099,1.97770955,2647.2,2647.0,1.6057]
[1729331873530,1.97770955,2647.1,2647.0,1.6057]
[1729331874596,1.97770955,2647.2,2647.0,1.6057]
[1729331874802,1.97770955,2647.1,2647.0,1.6057]
[1729331875803,1.97778889,2647.1,2647.0,1.6057]
[1729331880539,1.97840343,2647.1,2647.0,1.6057]
[1729331882253,2.37408412,2647.3,2647.0,1.6057]
[1729331882421,7.58666201,2647.3,2646.8,3.77814]
[1729331882615,1.97887513,2647.0,2646.8,3.77814]
[1729331883562,1.97887513,2646.9,2646.8,3.77814]
[1729331883926,1.97887513,2647.0,2646.8,3.77814]
[1729331884552,1.97887513,2647.0,2646.8,7.55617]
[1729331884757,1.97887513,2647.0,2646.8,8.463317]
[1729331885950,1.97887513,2646.9,2646.8,8.463317]
[1729331887855,1.97887513,2646.9,2646.8,4.685177]
[1729331888622,1.9804042,2646.9,2646.8,4.685177]
[1729331889025,2.3765046,2647.2,2646.9,3.77798]
[1729331889426,2.3765046,2647.1,2646.9,3.77798]
[1729331893933,2.37747643,2647.1,2646.9,3.77798]
[1729331894845,2.37747643,2647.1,2646.7,5.2935]
[1729331895176,2.37747643,2647.1,2646.8,3.77813]
[1729331898973,2.37733941,2647.1,2646.8,3.77813]
[1729331899667,2.37733941,2647.1,2646.9,3.77793]
[1729331899973,2.37733941,2647.1,2646.8,3.77813]
[1729331900646,2.37733941,2647.1,2646.8,7.55618]
[1729331900857,2.37733941,2647.1,2646.8,3.77805]
[1729331901481,2.37733941,2647.1,2646.8,7.55613]
[1729331901660,1.98116879,2646.9,2646.8,7.55613]
[1729331901851,1.98116879,2646.9,2646.8,8.463273]
[1729331902051,1.98123326,2646.9,2646.8,4.685193]
[1729331903275,2.37733941,2647.0,2646.8,4.685193]
[1729331903444,2.37733941,2647.1,2646.8,3.77805]
[1729331903644,1.98127356,2646.9,2646.8,3.77805]
[1729331903878,2.37752827,2647.1,2646.8,3.77805]
[1729331906540,2.96875695,2647.1,2646.8,3.77805]
[1729331906772,1.98129588,2646.9,2646.8,3.77805]
[1729331906936,1.98129588,2646.9,2646.8,4.685212]
[1729331907138,2.96875695,2647.1,2646.8,4.685212]
[1729331907349,2.96875695,2647.1,2646.8,3.77805]
[1729331908484,0.59122868,2647.1,2646.8,3.77805]
[1729331908636,2.96878972,2647.1,2646.8,3.77805]
[1729331913486,2.9688816,2647.1,2646.8,3.77805]
[1729331918420,2.96905784,2647.1,2646.8,3.77805]
[1729331919114,2.96905784,2647.1,2646.9,3.77793]
[1729331921088,2.96905784,2647.1,2646.8,3.77805]
[1729331921296,2.96905784,2647.1,2646.8,3.778]
[1729331921775,2.96905784,2647.1,2646.9,3.77796]
[1729331923523,2.96926228,2647.1,2646.9,3.77796]
[1729331925465,2.3780336,2647.0,2646.7,1.5153]
[1729331925670,2.3780336,2647.0,2646.8,3.77806]
[1729331928254,2.37812686,2647.0,2646.8,3.77806]
[1729331929140,2.96935554,2647.1,2646.8,3.77806]
[1729331929973,2.37812686,2647.0,2646.8,3.77806]
[1729331933182,2.37816589,2647.0,2646.8,3.77806]
[1729331936510,2.37816589,2647.0,2646.9,5.3007]
[1729331936692,2.96939457,2647.1,2646.9,5.3007]
[1729331937972,2.96923861,2647.1,2646.9,5.3007]
[1729331938569,2.96923861,2647.1,2647.0,3.77786]
[1729331939594,0.59122868,2647.1,2647.0,3.77786]
[1729331939970,2.96923861,2647.1,2647.0,3.77786]
[1729331941260,2.96906742,2647.1,2647.0,3.77786]
[1729331944222,2.96906742,2647.1,2646.9,5.3007]
[1729331944426,4.52746742,2647.1,2646.9,3.778]
[1729331948721,2.14962868,2647.1,2646.9,3.778]
[1729331948926,4.52737288,2647.1,2646.9,3.778]
[1729331951138,4.52740224,2647.1,2646.9,3.778]
[1729331954552,4.52659026,2647.1,2646.9,3.778]
[1729331955952,4.52659256,2647.1,2646.9,3.778]
[1729331957145,3.93617586,2647.1,2646.9,3.778]
[1729331961687,3.93617586,2647.1,2646.6,1.648]
[1729331961873,0.20807895,2646.8,2646.7,3.77815]
[1729331962079,0.20807895,2646.8,2646.7,4.698609]
[1729331965757,3.93594626,2647.1,2646.8,3.77808]
[1729331970608,3.93595487,2647.1,2646.8,3.77808]
[1729331971729,1.98129796,2646.9,2646.8,3.77808]
[1729331972134,3.93595487,2647.1,2646.8,3.77808]
[1729331975611,3.93598696,2647.1,2646.8,3.77808]
[1729331979550,1.98132856,2646.9,2646.8,3.77808]
[1729331979713,3.93598696,2647.1,2646.8,4.7905489]
[1729331983554,2.37758696,2647.0,2646.9,3.778]
[1729331985222,1.5584,2647.1,2646.9,3.778]
[1729331985425,2.3776762,2647.0,2646.9,3.778]
[1729331986142,3.9360762,2647.1,2646.9,3.778]
[1729331987041,2.3776762,2647.0,2646.9,3.778]
[1729331987364,2.3776762,2647.0,2646.9,4.63486189]
[1729331990274,2.37762805,2647.0,2646.9,4.63486189]
[1729331990568,2.37762805,2647.0,2646.9,0.85686189]
[1729331990868,2.37762805,2647.0,2646.8,3.77814]
[1729331993950,2.37762805,2647.1,2646.8,3.77814]
[1729331994265,2.37762805,2647.0,2646.8,3.77814]
[1729331998543,3.99372805,2647.0,2646.5,3.7785]
[1729331998743,1.98099499,2646.6,2646.5,3.77857]
[1729331999302,1.98099499,2646.6,2646.5,4.69871]
[1729331999705,1.98099499,2646.6,2646.5,6.34291]
[1729332000136,1.98099499,2646.6,2646.5,4.69871]
[1729332003030,9.2e-07,2646.6,2646.5,4.69871]
[1729332003394,1.6161,2646.8,2646.5,4.69871]
[1729332003733,1.6161,2646.8,2646.4,3.77857]
[1729332003936,3.99228857,2646.8,2646.4,3.77857]
[1729332004121,3.99228857,2646.8,2646.5,3.77854]
[1729332004496,3.99228857,2646.8,2646.4,3.7787]
[1729332004731,3.99228857,2646.8,2646.3,1.6442]
[1729332004917,3.99228857,2646.8,2646.4,3.77871]
[1729332005294,3.99228857,2646.8,2646.4,3.77865]
[1729332005494,3.99228857,2646.8,2646.5,3.77857]
[1729332006151,1.6161,2646.8,2646.5,3.77857]
[1729332006293,3.99228857,2646.8,2646.4,3.77865]
[1729332006498,1.6161,2646.8,2646.4,7.55729]
[1729332006807,1.6161,2646.8,2646.4,8.69390476]
[1729332007335,3.99228857,2646.8,2646.4,4.91524476]
[1729332007538,1.6161,2646.8,2646.4,8.69386476]
[1729332007834,2.37618857,2646.9,2646.3,0.35207736]
[1729332008041,1.6161,2646.6,2646.1,3.77913]
[1729332008226,3.32386665,2646.5,2646.0,3.77928]
[1729332008535,5.3946,2646.6,2646.5,0.10585746]
[1729332013306,8.16507091,2646.6,2646.5,0.10585746]
[1729332013518,5.3946,2646.6,2646.5,0.10585746]
[1729332013940,8.16507091,2646.6,2646.5,0.10585746]
[1729332014142,1.6161,2646.1,2645.6,3.77974]
[1729332014446,3.59057289,2646.1,2645.6,8.66156865]
[1729332014656,1.6161,2646.1,2645.6,8.66156865]
[1729332014938,1.6161,2646.1,2645.6,4.88177865]
[1729332015747,1.6161,2646.1,2645.6,6.70049507]
[1729332016045,1.6161,2646.1,2645.7,0.67004951]
[1729332017749,5.75136366,2646.2,2645.7,0.67004951]
[1729332017934,3.77908,2646.2,2645.7,0.67004951]
[1729332018532,2.80268437,2646.1,2645.7,0.67004951]
[1729332018833,3.77924,2646.1,2645.7,0.67004951]
[1729332019172,3.77908,2646.2,2645.7,0.67004951]
[1729332019173,7.5582,2646.2,2645.7,0.67004951]
[1729332019336,3.77908,2646.2,2645.7,0.67004951]
[1729332019534,7.55817,2646.2,2645.7,0.67004951]
[1729332019739,3.77908,2646.2,2645.7,0.67004951]
[1729332019945,3.77908,2646.2,2645.7,4.44975951]
[1729332020146,7.55817,2646.2,2645.7,4.44975951]
[1729332020347,3.77908,2646.2,2645.7,0.67004951]
[1729332020876,1.3307,2646.1,2645.7,0.67004951]
[1729332021238,5.10989,2646.1,2645.7,0.67004951]
[1729332022075,5.75121366,2646.3,2645.7,0.67004951]
[1729332022453,5.74998317,2646.3,2645.7,0.67004951]
[1729332022663,3.77907,2646.2,2645.7,0.67004951]
[1729332023069,3.77907,2646.2,2645.7,4.44974951]
[1729332023455,3.77907,2646.2,2645.7,6.05984951]
[1729332024183,3.77907,2646.2,2645.5,1.81639654]
[1729332024342,3.77922,2646.1,2645.5,3.78]
[1729332024838,3.77924,2646.1,2645.6,3.77985]
[1729332025454,5.75014317,2646.2,2645.5,3.78]
[1729332025636,3.77936,2646.0,2645.5,3.78]
[1729332025866,3.77936,2646.0,2645.5,4.88042354]
[1729332026744,3.77936,2646.0,2645.5,8.66035354]
[1729332027159,3.77856,2646.0,2645.5,8.66035354]
[1729332027443,3.77907,2646.2,2645.6,3.77984]
[1729332027642,3.77914,2646.1,2645.6,3.77984]
[1729332027842,3.77914,2646.1,2645.6,4.98900353]
[1729332031889,3.77914,2646.1,2645.7,1.6101]
[1729332032584,7.5582,2646.2,2645.7,5.3898]
[1729332033174,7.55815,2646.2,2645.7,5.3898]
[1729332033377,3.77907,2646.2,2645.7,5.3898]
[1729332033593,7.55819,2646.2,2645.7,6.60933001]
[1729332033966,7.55815,2646.2,2645.7,6.60933001]
[1729332034144,3.77907,2646.2,2645.7,6.60933001]
[1729332034343,7.55816,2646.2,2645.7,6.60933001]
[1729332034784,3.77907,2646.2,2645.7,6.60933001]
[1729332034986,9.13414032,2646.2,2645.7,6.60933001]
[1729332035978,5.35504032,2646.2,2645.7,6.60933001]
[1729332036187,9.13412032,2646.2,2645.7,6.60933001]
[1729332036849,5.35504032,2646.2,2645.7,6.60933001]
[1729332037475,9.13416032,2646.2,2645.7,6.60933001]
[1729332037784,5.35504032,2646.2,2645.7,6.60933001]
[1729332037984,9.13416032,2646.2,2645.7,5.3898]
[1729332038190,1.57597032,2646.1,2645.7,1.6101]
[1729332038362,1.57597032,2646.0,2645.7,1.6101]
[1729332038687,9.13438032,2646.1,2645.7,1.6101]
[1729332038985,5.35511032,2646.1,2645.7,1.6101]
[1729332039344,3.77931,2646.0,2645.7,1.6101]
[1729332039541,5.35511032,2646.1,2645.7,1.6101]
[1729332040558,1.57597032,2646.0,2645.7,1.6101]
[1729332041786,0.82092279,2646.0,2645.7,1.6101]
[1729332043395,5.75066227,2646.1,2645.7,1.6101]
[1729332043694,9.52991227,2646.1,2645.7,1.6101]
[1729332043869,5.75066227,2646.1,2645.7,1.6101]
[1729332044986,5.75083227,2646.0,2645.7,1.6101]
[1729332045182,1.97152227,2646.0,2645.7,1.6101]
[1729332047883,5.75083227,2646.0,2645.7,1.6101]
[1729332048467,1.97152227,2646.0,2645.7,1.6101]
[1729332048868,5.75084227,2646.0,2645.7,1.6101]
[1729332049395,3.77932,2646.0,2645.7,1.6101]
[1729332049598,3.77944,2645.9,2645.7,1.6101]
[1729332049799,3.77943,2645.9,2645.5,1.6635]
[1729332050010,7.55897,2645.9,2645.5,1.6635]
[1729332050169,3.77959,2645.8,2645.5,1.6635]
[1729332052906,2.36582672,2645.9,2645.5,1.6635]
[1729332053105,3.77967,2645.8,2645.5,1.6635]
[1729332053607,6.14548672,2645.8,2645.5,1.6635]
[1729332054404,3.77971,2645.7,2645.5,1.6635]
[1729332057827,6.14540672,2645.8,2645.5,1.6635]
[1729332058917,2.36582672,2645.8,2645.5,1.6635]
[1729332059123,0.1242984,2645.6,2645.5,1.6635]
[1729332059425,1e-07,2645.6,2645.5,1.6635]
[1729332059626,1e-07,2645.6,2645.5,2.207856]
[1729332059829,1e-07,2645.6,2645.5,5.987856]
[1729332060587,2.37222168,2645.9,2645.5,5.987856]
[1729332060881,2.37222168,2645.8,2645.5,5.987856]
[1729332061521,2.37222168,2645.9,2645.5,5.987856]
[1729332061729,2.37222168,2645.7,2645.5,2.207856]
[1729332062026,2.37222168,2645.8,2645.5,1.6635]
[1729332062587,2.37222168,2645.8,2645.6,1.544]
[1729332063091,6.15180168,2645.8,2645.6,1.544]
[1729332063988,6.15172033,2645.8,2645.6,1.544]
[1729332064627,6.15172033,2645.8,2645.3,7.15822537]
[1729332064628,3.77958,2645.8,2645.3,7.15822537]
[1729332065599,3.77958,2645.8,2645.3,5.32428]
[1729332066937,3.77958,2645.8,2645.3,7.15822537]
[1729332068031,2.08172494,2645.8,2645.3,7.15822537]
[1729332068253,3.77952,2645.9,2645.5,1.544]
[1729332069307,3.77938,2646.0,2645.5,1.544]
[1729332069508,6.54652043,2646.0,2645.5,1.544]
[1729332069711,3.77971,2645.8,2645.5,1.544]
[1729332070759,0.10754377,2645.7,2645.5,1.544]
[1729332071721,3.77971,2645.8,2645.5,1.544]
[1729332073252,4.81233804,2645.8,2645.5,1.544]
[1729332074764,1.03262804,2645.8,2645.5,1.544]
[1729332075259,1.31e-06,2645.5,2645.3,1.544]
[1729332075963,3.77972,2645.7,2645.3,1.544]
[1729332076119,7.55952,2645.7,2645.3,1.544]
[1729332076451,2.7668015,2645.9,2645.3,1.544]
[1729332076660,3.77978,2645.7,2645.3,1.544]
[1729332076815,2.37106476,2645.6,2645.3,1.544]
[1729332077216,3.77978,2645.7,2645.3,1.544]
[1729332077217,6.15084476,2645.7,2645.3,1.544]
[1729332078316,6.1507907,2645.7,2645.3,1.544]
[1729332080356,2.3710107,2645.7,2645.3,5.32426]
[1729332080515,2.3710107,2645.7,2645.4,1.5673]
[1729332080852,6.1506007,2645.8,2645.4,1.5673]
[1729332083246,6.15100455,2645.8,2645.4,1.5673]
[1729332083839,2.37141455,2645.8,2645.4,5.34737]
[1729332084163,2.37141455,2645.8,2645.4,5.13637]
[1729332086655,7e-07,2645.7,2645.4,5.13637]
[1729332087365,7e-07,2645.7,2645.4,2.43137054]
[1729332088219,7e-07,2645.7,2645.4,1.3563]
[1729332092665,3.77944,2645.9,2645.4,1.3563]
[1729332092868,1.06e-06,2645.7,2645.4,1.3563]
[1729332097104,3.77961,2645.8,2645.4,1.3563]
[1729332104583,7.55928,2645.8,2645.4,1.3563]
[1729332104988,3.77961,2645.8,2645.4,1.3563]
[1729332105415,3.7798,2645.7,2645.4,1.3563]
[1729332107429,7.58239504,2645.8,2645.4,1.3563]
[1729332109215,3.77981,2645.7,2645.4,1.3563]
[1729332112531,7.58250106,2645.8,2645.4,1.3563]
[1729332112532,7.6e-07,2645.6,2645.4,1.3563]
[1729332112695,1.81146634,2645.6,2645.4,1.3563]
[1729332112890,6.54980974,2645.7,2645.4,1.3563]
[1729332113095,4.93714111,2645.7,2645.4,1.3563]
[1729332116637,1.15733111,2645.7,2645.4,1.3563]
[1729332117435,4.93714111,2645.7,2645.4,1.3563]
[1729332117836,3.77987,2645.6,2645.4,1.3563]
[1729332118216,7.55983,2645.6,2645.4,1.3563]
[1729332118410,3.78,2645.5,2645.2,1.5582]
[1729332118615,3.77994,2645.6,2645.2,1.5582]
[1729332118924,3.78002,2645.5,2645.2,1.5582]
[1729332119118,3.77987,2645.6,2645.2,1.5582]
[1729332119510,3.78,2645.5,2645.2,1.5582]
[1729332120540,1.05407433,2645.5,2645.3,3.78031]
[1729332120727,3.78014,2645.4,2645.3,3.78031]
[1729332122099,0.91464546,2645.4,2644.7,3.43523496]
[1729332122515,3.78065,2645.1,2644.7,1.5582]
[1729332123001,3.2389329,2645.0,2644.7,1.5582]
[1729332123216,3.78065,2645.1,2644.7,1.5582]
[1729332123638,7.56132,2645.1,2644.7,1.5582]
[1729332123845,3.78065,2645.1,2644.7,1.5582]
[1729332124471,4.557852,2645.1,2644.7,1.5582]
[1729332124648,3.78072,2645.0,2644.7,1.5582]
[1729332125131,4.557852,2645.1,2644.5,3.78141]
[1729332125132,4.557852,2645.1,2644.5,3.38764175]
[1729332125535,7.56136,2645.1,2644.5,5.33961]
[1729332126022,3.78065,2645.1,2644.5,5.33961]
[1729332127237,3.78072,2645.0,2644.5,1.5582]
[1729332127736,3.78065,2645.1,2644.5,1.5582]
[1729332127964,3.78065,2645.1,2644.5,5.3396]
[1729332128135,3.78065,2645.1,2644.5,6.43125973]
[1729332128330,3.99143,2645.2,2644.6,5.33943]
[1729332128720,3.78058,2645.1,2644.6,5.33943]
[1729332128918,2.76435634,2645.4,2644.8,1.5582]
[1729332129122,2.76435634,2645.4,2644.8,3.78093]
[1729332129123,3.78023,2645.4,2644.8,3.78093]
[1729332129436,3.78023,2645.4,2644.9,1.5582]
[1729332130262,3.99106,2645.5,2644.9,1.5582]
[1729332130469,7.7712,2645.5,2644.9,1.5582]
[1729332130774,3.78017,2645.4,2644.9,1.5582]
[1729332131180,2.76324292,2645.6,2644.9,1.5582]
[1729332131467,3.78007,2645.5,2645.0,1.5582]
[1729332131973,6.75406292,2645.7,2645.0,1.5582]
[1729332132138,2.76324292,2645.8,2644.8,1.5582]
[1729332132486,10.23324292,2645.9,2645.4,3.78013]
[1729332132696,3.77957,2645.9,2645.5,1.5582]
[1729332132843,1.40125329,2645.8,2645.5,1.5582]
[1729332134034,5.18082329,2645.8,2645.5,1.5582]
[1729332134230,3.7793,2646.0,2645.5,1.5582]
[1729332134466,3.77944,2645.9,2645.5,1.5582]
[1729332134847,3.7793,2646.0,2645.5,1.5582]
[1729332135063,3.77954,2645.9,2645.5,1.5582]
[1729332135251,4.535454,2645.8,2645.5,1.5582]
[1729332135784,3.77978,2645.7,2645.5,1.5582]
[1729332135940,3.77986,2645.6,2645.0,1.5582]
[1729332137082,3.77986,2645.6,2645.0,5.33889]
[1729332137480,0.755884,2645.8,2645.2,3.78031]
[1729332137783,3.77967,2645.8,2645.3,1.5582]
[1729332142557,6.14871873,2645.8,2645.3,1.5582]
[1729332143406,2.36904873,2645.7,2645.3,1.5582]
[1729332143809,6.14882873,2645.7,2645.3,1.5582]
[1729332144009,6.14888743,2645.7,2645.3,1.5582]
[1729332153227,3.77987,2645.6,2645.3,1.5582]
[1729332154101,3.19554159,2645.5,2644.7,5.65817496]
[1729332154401,2.36959508,2645.3,2644.8,1.6283]
[1729332154595,3.78044,2645.2,2644.8,1.6283]
[1729332155138,3.78067,2645.1,2644.8,1.6283]
[1729332155489,1.46e-06,2645.1,2644.8,1.6283]
[1729332155686,1.48e-06,2645.0,2644.6,1.6283]
[1729332155933,0.83503474,2645.0,2644.6,1.6283]
[1729332156292,3.78038,2645.3,2644.8,1.6283]
[1729332157425,7.56079,2645.3,2644.8,1.6283]
[1729332157725,3.78038,2645.3,2644.8,1.6283]
[1729332157890,8.62554633,2645.3,2644.8,1.6283]
[1729332158096,4.84516633,2645.3,2644.8,1.6283]
[1729332159416,8.62553633,2645.3,2644.8,1.6283]
[1729332159617,4.84516633,2645.3,2644.8,1.6283]
[1729332161201,8.62553633,2645.3,2644.8,1.6283]
[1729332161415,3.78037,2645.3,2644.8,1.6283]
[1729332161590,7.56074,2645.3,2644.8,1.6283]
[1729332161789,6.14908198,2645.3,2644.8,1.6283]
[1729332163142,6.14906742,2645.3,2644.8,1.6283]
[1729332163639,9.92948742,2645.3,2644.8,1.6283]
[1729332163811,6.14906742,2645.3,2644.8,1.6283]
[1729332164699,9.92944742,2645.3,2644.8,1.6283]
[1729332165047,6.14906742,2645.3,2644.8,1.6283]
[1729332165212,9.92948742,2645.3,2644.8,1.6283]
[1729332165392,6.14906742,2645.3,2644.8,1.6283]
[1729332166836,6.14906742,2645.3,2644.8,3.78099]
[1729332166997,6.14906742,2645.3,2644.9,1.5597]
[1729332167896,6.15012109,2645.3,2644.9,1.5597]
[1729332169245,6.15011109,2645.3,2644.9,1.5597]
[1729332172203,9.93051109,2645.3,2644.9,1.5597]
[1729332172401,6.15011109,2645.3,2644.9,1.5597]
[1729332172716,6.15044639,2645.3,2644.9,1.5597]
[1729332174563,3.78047,2645.2,2644.9,1.5597]
[1729332175052,6.15044639,2645.3,2644.9,1.5597]
[1729332175255,3.78043,2645.2,2644.9,1.5597]
[1729332175570,6.15044639,2645.3,2644.9,1.5597]
[1729332175571,9.93081639,2645.3,2644.9,1.5597]
[1729332175700,6.15044639,2645.3,2644.9,1.5597]
[1729332176116,3.78045,2645.2,2644.9,1.5597]
[1729332176326,9.93080639,2645.3,2644.9,1.5597]
[1729332176561,11.20039711,2645.3,2644.9,1.5597]
[1729332176764,7.42003711,2645.3,2644.9,1.5597]
[1729332177463,3.78045,2645.2,2644.9,1.5597]
[1729332178064,11.20075499,2645.3,2644.9,1.5597]
[1729332178417,7.42034499,2645.3,2644.9,1.5597]
[1729332179059,11.20076499,2645.3,2644.9,1.5597]
[1729332179430,11.20073499,2645.3,2644.9,1.5597]
[1729332179735,7.42034499,2645.3,2644.9,1.5597]
[1729332180057,11.20074499,2645.3,2644.9,1.5597]
[1729332180465,3.78045,2645.2,2644.9,1.5597]
[1729332181473,7.4208547,2645.3,2644.9,1.5597]
[1729332181961,3.78043,2645.2,2644.9,1.5597]
[1729332182172,7.4208547,2645.3,2644.9,1.5597]
[1729332182380,3.6404947,2645.3,2644.9,1.5597]
[1729332182532,7.4207947,2645.3,2644.9,1.5597]
[1729332182923,2.37090398,2645.3,2644.9,1.5597]
[1729332184378,0.00436154,2645.2,2644.9,1.5597]
[1729332185274,2.37526552,2645.2,2644.9,1.5597]
[1729332185633,0.00436154,2645.2,2644.9,1.5597]
[1729332185829,2.37562259,2645.2,2644.9,1.5597]
[1729332186086,0.00436154,2645.2,2644.9,1.5597]
[1729332186381,2.37562259,2645.2,2644.9,1.5597]
[1729332188772,0.00436154,2645.2,2644.9,1.5597]
[1729332188945,2.37562259,2645.2,2644.9,1.5597]
[1729332189542,2.3762506,2645.2,2644.9,1.5597]
[1729332190672,2.37638521,2645.2,2644.9,1.5597]
[1729332190893,6e-07,2645.1,2644.9,1.5597]
[1729332191064,3.56936026,2645.1,2644.9,1.5597]
[1729332191467,5.94138393,2645.1,2644.9,1.5597]
[1729332195296,2.37202367,2645.0,2644.9,1.5597]
[1729332195456,9.8e-07,2645.0,2644.9,1.5597]
[1729332195980,3.56936026,2645.1,2644.9,1.5597]
[1729332196187,8.36217754,2645.1,2644.9,1.5597]
[1729332196504,4.58149754,2645.1,2644.7,1.5102]
[1729332196793,3.78071,2645.0,2644.7,1.5102]
[1729332197363,3.56936026,2645.1,2644.4,3.78146]
[1729332197364,2.00917479,2644.9,2644.4,3.40032315]
[1729332197588,2.76736095,2645.0,2644.4,3.40032315]
[1729332197897,3.78097,2644.9,2644.4,3.40032315]
[1729332198500,3.91872843,2644.8,2644.4,1.5102]
[1729332198702,3.91872843,2644.7,2644.4,1.5102]
[1729332198900,7.69976843,2644.8,2644.4,1.5102]
[1729332199402,3.78104,2644.8,2644.4,1.5102]
[1729332199910,3.78071,2645.0,2644.4,5.29176]
[1729332200504,3.78096,2644.9,2644.4,6.199111]
[1729332201908,6.15168131,2644.9,2644.4,6.199111]
[1729332203367,3.78096,2644.9,2644.4,5.29176]
[1729332203609,6.15168131,2644.9,2644.4,5.29176]
[1729332204806,3.78096,2644.9,2644.4,5.29176]
[1729332205673,3.78101,2644.8,2644.4,1.5102]
[1729332208043,3.78086,2644.9,2644.4,5.2917]
[1729332208200,3.78086,2644.9,2644.4,6.3845446]
[1729332208902,7.5618,2644.9,2644.4,6.3845346]
[1729332209102,3.78086,2644.9,2644.4,6.3845346]
[1729332209444,3.78086,2644.9,2644.4,8.27465775]
[1729332210441,3.78086,2644.9,2644.4,5.29169]
[1729332211029,6.15142877,2644.9,2644.4,5.29169]
[1729332211551,3.78086,2644.9,2644.4,7.18181315]
[1729332213152,3.78086,2644.9,2644.4,5.29169]
[1729332213520,3.78086,2644.9,2644.4,7.18181315]
[1729332213847,4.79524988,2644.9,2644.4,7.18181315]
[1729332214053,3.38487865,2644.9,2644.4,5.29169]
[1729332214355,2.37056877,2644.9,2644.4,5.29169]
[1729332214654,6.15141877,2645.0,2644.4,5.29169]
[1729332215637,6.15141877,2645.0,2644.4,7.18181315]
[1729332215840,3.78085,2645.0,2644.4,10.96331315]
[1729332216041,6.15134185,2645.0,2644.4,10.96331315]
[1729332216609,6.15134185,2645.0,2644.5,3.78137]
[1729332217445,6.15134185,2645.0,2644.4,7.18181315]
[1729332219063,6.15134185,2645.0,2644.4,10.96331315]
[1729332219228,6.15134185,2645.0,2644.4,7.18181315]
[1729332220460,6.15134185,2645.0,2644.5,3.78142]
[1729332220762,6.15138789,2645.0,2644.5,3.78142]
[1729332222260,6.15126789,2645.0,2644.5,3.78142]
[1729332225860,6.15235348,2645.0,2644.5,3.78142]
[1729332226358,6.15235348,2645.0,2644.6,1.5475]
[1729332228324,2.1114797,2644.9,2644.6,1.5475]
[1729332228536,5.8924197,2644.9,2644.6,1.5475]
[1729332228775,6.88083567,2644.9,2644.6,1.5475]
[1729332228937,2.83960502,2644.9,2644.6,1.5475]
[1729332229137,1.0680212,2644.9,2644.6,1.5475]
[1729332229535,0.98841597,2644.9,2644.6,1.5475]
[1729332230477,3.781,2644.8,2644.6,1.5475]
[1729332230779,4.20464091,2644.8,2644.6,1.5475]
[1729332231756,1.65e-06,2644.8,2644.6,1.5475]
[1729332231955,1.65e-06,2644.8,2644.3,3.78171]
[1729332232262,3.78074,2645.0,2644.4,1.5475]
[1729332232462,3.78086,2644.9,2644.4,1.5475]
[1729332233958,3.78086,2644.9,2644.4,3.43762315]
[1729332236203,3.78086,2644.9,2644.4,7.21918315]
[1729332236357,3.78074,2645.0,2644.4,7.21918315]
[1729332236693,3.78074,2645.0,2644.9,0.67600248]
[1729332240485,6.76096812,2645.0,2644.9,0.67600248]
[1729332242097,2.98022812,2645.0,2644.4,3.43762315]
[1729332242402,3.78087,2644.9,2644.4,3.43762315]
[1729332242898,3.78087,2644.9,2644.4,7.21916315]
[1729332243977,3.78087,2644.9,2644.4,3.43762315]
[1729332244187,2.76974138,2644.9,2644.4,3.43762315]
[1729332244369,7.05291701,2644.7,2644.2,3.3925203]
[1729332244562,7.56241,2644.7,2644.2,3.3925203]
[1729332244874,3.7813,2644.6,2644.2,1.5007]
[1729332245209,3.78138,2644.6,2644.0,3.32257754]
[1729332245415,4.159698,2644.5,2644.0,3.32257754]
[1729332245620,0.378138,2644.5,2644.0,3.32257754]
[1729332245766,1.50887399,2644.4,2644.0,1.5007]
[1729332245962,0.378138,2644.5,2644.0,1.5007]
[1729332246166,3.78159,2644.4,2644.0,1.5007]
[1729332246367,0.378138,2644.5,2644.0,1.5007]
[1729332246813,3.78145,2644.5,2644.0,1.5007]
[1729332247000,3.78157,2644.4,2644.0,1.5007]
[1729332247623,3.35074934,2644.3,2643.8,1.5007]
[1729332248112,7.563,2644.5,2643.8,1.5007]
[1729332248265,3.78145,2644.5,2643.8,1.5007]
[1729332248466,4.159745,2644.4,2643.8,1.5007]
[1729332254388,4.159745,2644.4,2643.8,1.49979121]
[1729332255899,3.7816,2644.4,2643.8,5.28218121]
[1729332257416,11.63042768,2644.8,2643.9,3.78228]
[1729332257417,0.59197273,2644.3,2643.9,3.78228]
[1729332257720,0.59197273,2644.3,2644.2,5.28256]